fUSD/lending_fUSD_20250227
["ID","MTS","AMOUNT","RATE_DAILY","PERIOD"]
[354752849,1740665640811,-154.51,0.000631,63]
[354752850,1740665640865,-154.51,0.000631,63]
[354752851,1740665640919,-154.51,0.000631,63]
[354752852,1740665640970,-154.51,0.000631,63]
[354752853,1740665641017,-1063.50819814,0.0006327,120]
[354752854,1740665641064,-500.0,0.00063288,120]
[354752855,1740665641115,-500.0,0.00063288,120]
[354752856,1740665641167,-150.0,0.00063288,120]
[354752857,1740665641217,-1088.0,0.00063288,120]
[354752858,1740665641268,-500.0,0.00063288,120]
[354752859,1740665641324,-180.45160267,0.00063288,120]
[354752860,1740665641374,-500.0,0.00063312,120]
[354752861,1740665641425,-3343.33,0.00063334,120]
[354752862,1740665641478,-209.0,0.0006337,30]
[354752863,1740665641531,-206.0,0.0006337,30]
[354752864,1740665641582,-209.0,0.0006337,30]
[354752865,1740665641633,-400.0,0.0006337,60]
[354752866,1740665641685,-400.0,0.0006337,60]
[354752867,1740665641737,-5092.20193594,0.000634,120]
[354752868,1740665641791,-172.75,0.00063562,120]
[354752869,1740665641842,-500.0,0.00063562,120]
[354752870,1740665641894,-500.0,0.00063562,120]
[354752871,1740665641944,-189.00046065,0.00063562,120]
[354752872,1740665641996,-1088.0,0.00063562,120]
[354752873,1740665642045,-857.08371444,0.00063836,120]
[354752874,1740665642094,-500.0,0.00063836,120]
[354752875,1740665642145,-1088.0,0.00063836,120]
[354752876,1740665642198,-514.74058616,0.0006386,120]
[354752877,1740665642251,-151.0,0.00063863,120]
[354752878,1740665642305,-100000.0,0.00064,64]
[354752879,1740665642356,-1000.0,0.00064,120]
[354752880,1740665642408,-1000000.0,0.00064,120]
[354752881,1740665642460,-1000000.0,0.00064,120]
[354752882,1740665642509,-19245.76086035,0.00064,30]
[354752883,1740665642561,-151.0,0.00064,120]
[354752884,1740665642611,-151.0,0.00064,120]
[354752885,1740665642664,-303286.84074305,0.0006405,120]
[354752910,1740666475010,-1037.4729002,0.00025,60]
[354752911,1740666475071,-492.45,0.00025015,120]
[354752912,1740666475137,-625.78029305,0.00032103,30]
[354752913,1740666475200,-1500.0,0.00041096,120]
[354752914,1740666475259,-150.0,0.00045,85]
[354752915,1740666475320,-385.66,0.00045399,73]
[354752916,1740666475382,-904.58445208,0.00048456,31]
[354752917,1740666475443,-220.47849234,0.000493,35]
[354752918,1740666475505,-150.76,0.00052266,120]
[354752919,1740666475567,-410.38959839,0.0005283,120]
[354752920,1740666475638,-66645.999999,0.000535,120]
[354752921,1740666475698,-500.0,0.00054794,120]
[354752922,1740666475759,-500.0,0.00054794,120]
[354752923,1740666475820,-195.8,0.00054794,120]
[354752924,1740666475880,-503.36580263,0.00054794,120]
[354752925,1740666475937,-500.0,0.00054794,120]
[354752926,1740666475995,-500.0,0.00054794,120]
[354752927,1740666476056,-500.0,0.00054794,120]
[354752928,1740666476121,-500.0,0.00054794,120]
[354752929,1740666476182,-500.34915002,0.00054794,120]
[354752930,1740666476243,-510.5632751,0.00054794,120]
[354752931,1740666476306,-500.0,0.00054794,120]
[354752932,1740666476364,-505.81920706,0.00054794,120]
[354752933,1740666476423,-500.0,0.00054794,120]
[354752934,1740666476483,-500.0,0.00054794,120]
[354752935,1740666476539,-500.0,0.00054794,40]
[354752936,1740666476595,-500.0,0.00054794,120]
[354752937,1740666476653,-500.0,0.00054794,120]
[354752938,1740666476711,-500.0,0.00054794,120]
[354752939,1740666476770,-500.0,0.00054794,120]
[354752940,1740666476827,-500.0,0.00054794,120]
[354752941,1740666476884,-500.0,0.00054794,120]
[354752942,1740666476941,-500.0,0.00054794,120]
[354752943,1740666476999,-500.0,0.00054794,120]
[354752944,1740666477055,-500.0,0.00054794,120]
[354752945,1740666477111,-500.0,0.00054794,120]
[354752946,1740666477170,-500.0,0.00054794,120]
[354752947,1740666477226,-500.0,0.00054794,120]
[354752948,1740666477282,-506.78886324,0.00054794,120]
[354752949,1740666477338,-500.0,0.00054794,120]
[354752950,1740666477397,-510.48,0.00054794,120]
[354752951,1740666477453,-500.0,0.00054794,120]
[354752952,1740666477511,-500.0,0.00054794,120]
[354752953,1740666477573,-500.0,0.00054794,120]
[354752954,1740666477636,-519.1,0.00054794,120]
[354752955,1740666477698,-500.0,0.00054794,120]
[354752956,1740666477755,-500.0,0.00054794,120]
[354752957,1740666477812,-498.52409941,0.00054794,120]
[354752958,1740666477872,-498.49931492,0.00054794,120]
[354752959,1740666477934,-500.0,0.00054794,120]
[354752960,1740666478168,-500.0,0.00054794,120]
[354752961,1740666478228,-500.0,0.00054794,120]
[354752962,1740666478288,-500.0,0.00054794,120]
[354752963,1740666478344,-500.0,0.00054794,120]
[354752964,1740666478401,-500.0,0.00054794,120]
[354752965,1740666478461,-500.0,0.00054794,120]
[354752966,1740666478521,-500.0,0.00054794,120]
[354752967,1740666478581,-500.0,0.00054794,120]
[354752968,1740666478645,-195.67,0.00054794,120]
[354752969,1740666478704,-500.0,0.00054794,120]
[354752970,1740666478764,-494.87547868,0.00054794,120]
[354752971,1740666478821,-500.0,0.00054794,120]
[354752972,1740666478879,-504.27128816,0.00054794,120]
[354752973,1740666478936,-249.35960601,0.00054794,120]
[354752974,1740666478995,-500.0,0.00054794,120]
[354752975,1740666479056,-500.0,0.00054794,120]
[354752976,1740666479114,-500.0,0.00054794,120]
[354752977,1740666479176,-500.0,0.00054794,120]
[354752978,1740666479234,-500.0,0.00054794,120]
[354752979,1740666479294,-500.0,0.00054794,120]
[354752980,1740666479355,-500.0,0.00054794,120]
[354752981,1740666479415,-500.0,0.00054794,100]
[354752982,1740666479472,-500.0,0.00054794,120]
[354752983,1740666479532,-500.0,0.00054794,120]
[354752984,1740666479598,-500.0,0.00054794,120]
[354752985,1740666479661,-500.0,0.00054794,120]
[354752986,1740666479720,-500.0,0.00054794,120]
[354752987,1740666479791,-500.0,0.00054794,120]
[354752988,1740666479852,-500.0,0.00054794,120]
[354752989,1740666479908,-500.0,0.00054794,120]
[354752990,1740666479965,-503.73903599,0.00054794,120]
[354752991,1740666480020,-500.0,0.00054794,120]
[354752992,1740666480079,-525.12,0.00054794,120]
[354752993,1740666480136,-500.0,0.00054794,120]
[354752994,1740666480196,-500.0,0.00055068,120]
[354752995,1740666480260,-500.0,0.00055068,120]
[354752996,1740666480322,-500.0,0.00055068,120]
[354752997,1740666480385,-500.0,0.00055068,120]
[354752998,1740666480448,-507.01635003,0.00055068,120]
[354752999,1740666480509,-500.0,0.00055068,120]
[354753000,1740666480571,-516.45,0.00055068,120]
[354753001,1740666480626,-500.0,0.00055068,40]
[354753002,1740666480681,-500.0,0.00055068,120]
[354753003,1740666480738,-500.0,0.00055068,120]
[354753004,1740666480795,-500.0,0.00055068,120]
[354753005,1740666480847,-508.93229142,0.00055068,120]
[354753006,1740666480899,-248.27,0.00055068,120]
[354753007,1740666480955,-186.33,0.00055068,120]
[354753008,1740666481009,-500.0,0.00055068,120]
[354753009,1740666481061,-500.0,0.00055068,120]
[354753010,1740666481113,-500.0,0.00055068,120]
[354753011,1740666481170,-437.65899383,0.00055068,120]
[354753012,1740666481225,-523.58028586,0.00055068,120]
[354753013,1740666481281,-500.0,0.00055068,120]
[354753014,1740666481336,-404.06,0.00055068,120]
[354753015,1740666481393,-500.0,0.00055068,120]
[354753016,1740666481451,-614.44780566,0.00055068,120]
[354753017,1740666481506,-500.0,0.00055068,120]
[354753018,1740666481566,-500.0,0.00055068,120]
[354753019,1740666481623,-500.0,0.00055068,120]
[354753020,1740666481678,-500.0,0.00055068,120]
[354753021,1740666481733,-632.27,0.00055068,120]
[354753022,1740666481789,-500.0,0.00055068,120]
[354753023,1740666481848,-500.0,0.00055068,120]
[354753024,1740666481905,-500.0,0.00055068,120]
[354753025,1740666481964,-531.18,0.00055068,120]
[354753026,1740666482023,-627.04412014,0.00055068,120]
[354753027,1740666482079,-500.0,0.00055068,120]
[354753028,1740666482134,-500.0,0.00055068,120]
[354753029,1740666482191,-214.63,0.00055068,120]
[354753030,1740666482251,-500.0,0.00055068,120]
[354753031,1740666482307,-500.0,0.00055068,120]
[354753032,1740666482364,-500.0,0.00055068,120]
[354753033,1740666482420,-500.0,0.00055068,120]
[354753034,1740666482479,-500.0,0.00055342,120]
[354753035,1740666482541,-500.0,0.00055342,120]
[354753036,1740666482603,-532.2,0.00055342,120]
[354753037,1740666482660,-505.1702386,0.00055342,120]
[354753038,1740666482717,-500.0,0.00055342,120]
[354753039,1740666482770,-500.0,0.00055342,120]
[354753040,1740666482827,-500.0,0.00055342,120]
[354753041,1740666482884,-500.0,0.00055342,120]
[354753042,1740666482937,-500.0,0.00055342,120]
[354753043,1740666482992,-500.0,0.00055342,120]
[354753044,1740666483051,-500.0,0.00055342,120]
[354753045,1740666483107,-500.0,0.00055342,120]
[354753046,1740666483164,-620.39,0.00055342,120]
[354753047,1740666483221,-649.3718612,0.00055342,120]
[354753048,1740666483280,-500.0,0.00055342,120]
[354753049,1740666483342,-500.0,0.00055342,120]
[354753050,1740666483402,-150.77,0.00055342,120]
[354753051,1740666483463,-644.75,0.00055342,120]
[354753052,1740666483520,-500.0,0.00055342,120]
[354753053,1740666483581,-178.92,0.00055342,120]
[354753054,1740666483773,-500.0,0.00055616,120]
[354753055,1740666483832,-500.0,0.00055616,120]
[354753056,1740666483891,-417.08,0.00055616,120]
[354753057,1740666483950,-490.24,0.00055616,120]
[354753058,1740666484010,-500.0,0.00055616,120]
[354753059,1740666484065,-500.0,0.00055616,120]
[354753060,1740666484125,-500.0,0.00055616,120]
[354753061,1740666484183,-500.0,0.00055616,120]
[354753062,1740666484241,-500.0,0.00055616,120]
[354753063,1740666484300,-648.44,0.00055616,120]
[354753064,1740666484359,-500.0,0.00055616,120]
[354753065,1740666484415,-190.78,0.00055616,120]
[354753066,1740666484470,-500.0,0.0005589,120]
[354753067,1740666484528,-500.0,0.0005589,120]
[354753068,1740666484586,-295.74,0.0005589,120]
[354753069,1740666484643,-500.0,0.0005589,120]
[354753070,1740666484697,-500.0,0.0005589,120]
[354753071,1740666484754,-500.0,0.0005589,120]
[354753072,1740666484812,-500.0,0.0005589,120]
[354753073,1740666484869,-500.0,0.0005589,120]
[354753074,1740666484925,-500.0,0.00056164,120]
[354753075,1740666484981,-500.0,0.00056164,120]
[354753076,1740666485038,-500.0,0.00056164,120]
[354753077,1740666485094,-500.0,0.00056164,120]
[354753078,1740666485149,-500.0,0.00056164,120]
[354753079,1740666485208,-500.0,0.00056164,120]
[354753080,1740666485266,-500.0,0.00056164,120]
[354753081,1740666485324,-2815.64729437,0.000562,90]
[354753082,1740666485381,-500.0,0.00056438,120]
[354753083,1740666485435,-500.0,0.00056438,120]
[354753084,1740666485492,-500.0,0.00056438,120]
[354753085,1740666485551,-500.0,0.00056438,120]
[354753086,1740666485613,-500.0,0.00056438,120]
[354753087,1740666485668,-500.0,0.00056438,120]
[354753088,1740666485720,-500.0,0.00056438,120]
[354753089,1740666485776,-500.0,0.00056712,120]
[354753090,1740666485831,-500.0,0.00056712,120]
[354753091,1740666485885,-500.0,0.00056712,120]
[354753092,1740666485936,-500.0,0.00056712,120]
[354753093,1740666485993,-200.63,0.00056712,120]
[354753094,1740666486049,-500.0,0.00056712,120]
[354753095,1740666486102,-500.0,0.00056712,120]
[354753096,1740666486157,-500.0,0.00056986,120]
[354753097,1740666486214,-500.0,0.00056986,120]
[354753098,1740666486271,-500.0,0.00056986,120]
[354753099,1740666486325,-500.0,0.00056986,120]
[354753100,1740666486381,-500.0,0.00056986,120]
[354753101,1740666486438,-500.0,0.00056986,120]
[354753102,1740666486499,-138726.8796,0.00057,120]
[354753103,1740666486555,-1475.7,0.00057,120]
[354753104,1740666486615,-500.0,0.0005726,120]
[354753105,1740666486673,-500.0,0.0005726,120]
[354753106,1740666486729,-500.0,0.0005726,120]
[354753107,1740666486785,-500.0,0.0005726,120]
[354753108,1740666486842,-500.0,0.0005726,120]
[354753109,1740666486896,-517.479,0.0005726,120]
[354753110,1740666486951,-1000000.0,0.000575,120]
[354753111,1740666487007,-500.0,0.00057534,120]
[354753112,1740666487063,-532.13483891,0.00057534,120]
[354753113,1740666487118,-500.0,0.00057534,120]
[354753114,1740666487173,-500.0,0.00057534,120]
[354753115,1740666487232,-500.0,0.00057534,120]
[354753116,1740666487288,-500.0,0.00057808,120]
[354753117,1740666487345,-500.0,0.00057808,120]
[354753118,1740666487401,-500.0,0.00057808,120]
[354753119,1740666487458,-500.0,0.00057808,120]
[354753120,1740666487519,-220.47849234,0.000579,70]
[354753121,1740666487581,-50000.0,0.00058,58]
[354753122,1740666487640,-1000000.0,0.00058,120]
[354753123,1740666487701,-500.0,0.00058082,120]
[354753124,1740666487760,-500.0,0.00058082,120]
[354753125,1740666487815,-500.0,0.00058082,120]
[354753126,1740666487875,-500.0,0.00058082,120]
[354753127,1740666487935,-500.0,0.00058356,120]
[354753128,1740666487993,-500.0,0.00058356,120]
[354753129,1740666488049,-500.0,0.00058356,120]
[354753130,1740666488106,-500.0,0.00058356,120]
[354753131,1740666488164,-1000000.0,0.000585,120]
[354753132,1740666488220,-463.81427986,0.0005863,120]
[354753133,1740666488276,-500.0,0.0005863,120]
[354753134,1740666488332,-500.0,0.0005863,120]
[354753135,1740666488390,-500.0,0.0005863,120]
[354753136,1740666488448,-500.0,0.00058904,120]
[354753137,1740666488502,-500.0,0.00058904,120]
[354753138,1740666488562,-1000000.0,0.00059,120]
[354753139,1740666488628,-500.0,0.00059178,120]
[354753140,1740666488686,-500.0,0.00059178,120]
[354753141,1740666488743,-500.0,0.00059452,120]
[354753142,1740666488801,-284.23283509,0.00059452,120]
[354753143,1740666488859,-1000000.0,0.000595,120]
[354753144,1740666488914,-405.52804965,0.00059726,120]
[354753145,1740666488968,-980.9,0.000598,30]
[354753146,1740666489022,-367.0,0.000598,30]
[354753147,1740666489080,-748.0,0.000598,30]
[354753148,1740666489137,-150.0,0.0005994,120]
[354753149,1740666489304,-150.0,0.0005994,120]
[354753150,1740666489362,-274.99687953,0.0005994,120]
[354753151,1740666489419,-150.0,0.0005994,120]
[354753152,1740666489478,-150.0,0.0005994,120]
[354753153,1740666489534,-150.0,0.0005994,120]
[354753154,1740666489595,-450.0,0.0005997,30]
[354753155,1740666489653,-155.7007916,0.0006,120]
[354753156,1740666489708,-626109.25513563,0.0006,120]
[354753157,1740666490098,155.24178872,0.0002,120]
[354753197,1740666632094,-1005.0,0.000147,2]
[354753198,1740666632104,-670.13,0.00014717,2]
[354753199,1740666632113,-300.0,0.00014899,2]
[354753200,1740666632123,-150.0,0.00014899,2]
[354753201,1740666632132,-5736.39454815,0.000149,2]
[354753202,1740666632144,-9145.697051,0.000149,2]
[354753203,1740666632154,-5954.55808743,0.000149,2]
[354753204,1740666632326,-4613.92161342,0.000149,2]
[354753205,1740666632341,-3503.3271,0.000149,2]
[354753206,1740666632351,-142.15226033,0.000149,2]
[354753207,1740666632363,-78.32623205,0.000149,2]
[354753208,1740666632372,-823.24002522,0.000149,2]
[354753209,1740666632637,-3892.45047478,0.000149,2]
[354753210,1740666632647,-947.268,0.000149,2]
[354753211,1740666632656,-18117.4667513,0.000149,2]
[354753212,1740666632666,-1181.3846519,0.000149,2]
[354753213,1740666632676,-3419.48999997,0.000149,2]
[354753214,1740666632685,-164.8705635,0.000149,2]
[354753215,1740666632694,-3416.48386118,0.000149,2]
[354753216,1740666632704,-190.59759045,0.00014968,2]
[354753217,1740666632715,-160.98287504,0.00014973,2]
[354753218,1740666632725,-2612.0,0.00014986,2]
[354753220,1740666632734,-2431.0,0.00014986,2]
[354753222,1740666632743,-606.0,0.00015,2]
[354753224,1740666632752,-149326.28565903,0.00015,2]
[354753290,1740666637996,-1418.98397657,0.00015,2]
[354753291,1740666638100,-804.7927256,0.00015,2]
[354753292,1740666638197,-9928.42417952,0.00015,2]
[354753298,1740666640150,-1032.6046,0.00015,2]
[354753299,1740666640241,-470.81976001,0.00015,2]
[354753300,1740666640421,-1035.69055352,0.00015,2]
[354753319,1740666643147,-87642.04183033,0.00015,2]
[354753320,1740666643234,-268.35229851,0.00015,2]
[354753418,1740666644517,-276649.80941925,0.00015,2]
[354753420,1740666644528,-420483.4050445,0.00015,2]
[354753422,1740666644538,-142134.4505475,0.00015,2]
[354753424,1740666644548,-147212.81567864,0.00015,2]
[354753426,1740666644559,-2992.52031736,0.00015,2]
[354753571,1740666646471,-1975.93650009,0.00015,2]
[354753572,1740666646483,-270.5700001,0.00015,2]
[354754933,1740666948167,368.55232287,4.794e-05,3]
[354754934,1740666948198,3425.80731732,4.794e-05,3]
[354754935,1740666948232,1198.64035981,4.794e-05,3]
[354754968,1740667832581,-857.5,0.000147,2]
[354755002,1740667838454,-21.094,0.000147,2]
[354755003,1740667838464,-150.0,0.00014877,2]
[354755004,1740667838474,-164.05502892,0.00014877,2]
[354755005,1740667838483,-500.0,0.00014877,2]
[354755006,1740667838492,-3163.96217474,0.00014899,2]
[354755007,1740667838508,-265.15035219,0.00014899,2]
[354755144,1740667840316,-1729.19168334,0.00014899,2]
[354755145,1740667840399,-432.93250001,0.00014899,2]
[354755156,1740667844656,-8575.0,0.00014899,2]
[354755157,1740667844701,-1447.39753428,0.00014899,2]
[354755229,1740667847062,-1807.79848797,0.00014899,2]
[354755230,1740667847092,-12692.92848857,0.00014899,2]
[354755231,1740667847101,-287.80377888,0.000149,2]
[354755232,1740667847111,-1491.1635,0.000149,2]
[354755233,1740667847120,-1063.24618671,0.000149,2]
[354755234,1740667847130,-578.0,0.00014904,2]
[354755235,1740667847139,-300.0,0.00014999,2]
[354755236,1740667847148,-300.0,0.00014999,2]
[354755237,1740667847158,-300.0,0.00014999,2]
[354755238,1740667847170,-666.0,0.00014999,2]
[354755239,1740667847179,-300.0,0.00014999,2]
[354755240,1740667847188,-300.0,0.00014999,2]
[354755241,1740667847198,-666.0,0.00014999,2]
[354755242,1740667847207,-650.0,0.00015,2]
[354755243,1740667847217,-62238.45461897,0.00015,2]
[354755244,1740667847227,-600.0,0.00015,3]
[354755245,1740667847237,-1611286.40552837,0.00015,2]
[354755246,1740667847248,-1209422.52986042,0.00015,2]
[354755247,1740667847257,-734.0,0.00015,2]
[354755248,1740667847267,-158.93,0.00015096,2]
[354755249,1740667847277,-952.07,0.0001512,2]
[354755250,1740667847286,-200.0,0.00015138,2]
[354755251,1740667847295,-5700.98,0.00015138,2]
[354755252,1740667847305,-305.33,0.00015146,3]
[354755253,1740667847314,-1000.0,0.00015195,2]
[354755254,1740667847324,-450.0,0.0001529,2]
[354755255,1740667847333,-200.0,0.00015303,2]
[354755256,1740667847342,-158.93,0.00015376,2]
[354755257,1740667847352,-2751.0,0.00015408,2]
[354755258,1740667847361,-250.0,0.00015475,2]
[354755259,1740667847371,-150.0,0.00015482,2]
[354755260,1740667847381,-27518.01,0.00015496,2]
[354755261,1740667847390,-1453.11,0.00015531,2]
[354755262,1740667847400,-150.66,0.00015576,2]
[354755263,1740667847409,-170.42,0.00015609,2]
[354755264,1740667847424,-150.66,0.00015674,2]
[354755265,1740667847433,-23900.0,0.0001568,2]
[354755266,1740667847443,-1319.94,0.0001572,2]
[354755267,1740667847452,-150.0,0.00015764,7]
[354755268,1740667847461,-150.66,0.00015771,2]
[354755269,1740667847470,-2666.2,0.00015774,2]
[354755270,1740667847479,-627.02,0.00015832,2]
[354755271,1740667847489,-150.0,0.00015847,2]
[354755272,1740667847499,-2248.80836262,0.00015866,2]
[354755273,1740667847508,-150.66,0.00015868,2]
[354755274,1740667847518,-952.07,0.00015876,2]
[354755275,1740667847528,-577.18,0.00015906,2]
[354755276,1740667847537,-150.66,0.00015966,2]
[354755277,1740667847547,-2845.52219921,0.00016,2]
[354755278,1740667847556,-600.0,0.00016,4]
[354755279,1740667847566,-267.93031833,0.00016,10]
[354755280,1740667847576,-150.66,0.00016063,2]
[354755281,1740667847585,-150.66,0.0001616,2]
[354755282,1740667847595,-150.66,0.00016258,2]
[354755283,1740667847604,-150.0,0.0001628,2]
[354755284,1740667847614,-150.66,0.00016355,2]
[354755285,1740667847623,-150.0,0.0001639,2]
[354755286,1740667847632,-150.66,0.00016452,2]
[354755288,1740667847734,-150.66,0.0001655,2]
[354755289,1740667847747,-952.07,0.00016632,2]
[354755290,1740667847756,-368.15,0.00016635,2]
[354755291,1740667847766,-150.66,0.00016647,2]
[354755292,1740667847776,-492.45,0.00016677,2]
[354755293,1740667847786,-215.92,0.00016711,2]
[354755294,1740667847800,-176.7,0.00016712,2]
[354755295,1740667847810,-368.15,0.00016722,2]
[354755296,1740667847820,-150.66,0.00016744,2]
[354755297,1740667847830,-300.0,0.00016767,2]
[354755298,1740667847840,-300.0,0.00016767,2]
[354755299,1740667847850,-666.0,0.00016767,2]
[354755300,1740667847861,-91730.04,0.00016768,2]
[354755301,1740667847871,-500.0,0.00016773,2]
[354755302,1740667847881,-500.0,0.00016773,2]
[354755303,1740667847891,-500.0,0.00016773,2]
[354755304,1740667847900,-251.01465103,0.00016773,2]
[354755305,1740667847910,-500.0,0.00016773,2]
[354755306,1740667847923,-368.15,0.0001681,2]
[354755307,1740667847933,-150.66,0.00016842,2]
[354755308,1740667847943,-368.15,0.00016897,2]
[354755309,1740667847952,-150.66,0.00016939,2]
[354755310,1740667847962,-300.0,0.00016946,2]
[354755311,1740667847972,-670.13,0.00016981,2]
[354755312,1740667847982,-368.15,0.00016985,2]
[354755313,1740667847995,-150.66,0.00017036,2]
[354755314,1740667848006,-368.15,0.00017072,2]
[354755315,1740667848016,-1000.0,0.00017094,2]
[354755316,1740667848027,-169.59,0.00017134,2]
[354755317,1740667848038,-150.66,0.00017134,2]
[354755318,1740667848051,-368.15,0.0001716,2]
[354755319,1740667848061,-170.42,0.0001717,2]
[354755320,1740667848072,-368.15,0.00017248,2]
[354755321,1740667848082,-368.15,0.00017335,2]
[354755322,1740667848092,-952.07,0.00017388,2]
[354755323,1740667848103,-368.15,0.00017423,2]
[354755324,1740667848113,-368.15,0.0001751,2]
[354755325,1740667848123,-368.15,0.00017598,2]
[354755326,1740667848134,-368.15,0.00017685,2]
[354755327,1740667848144,-368.15,0.00017773,2]
[354755328,1740667848154,-627.02,0.00017811,2]
[354755329,1740667848165,-368.15,0.0001786,2]
[354755330,1740667848177,-368.15,0.00017948,2]
[354755331,1740667848187,-1858.48069785,0.00018,2]
[354755332,1740667848197,-368.15,0.00018036,2]
[354755333,1740667848207,-200.0,0.00018082,2]
[354755334,1740667848217,-368.15,0.00018123,2]
[354755335,1740667848227,-952.07,0.00018144,2]
[354755336,1740667848236,-500.0,0.00018192,2]
[354755337,1740667848246,-368.15,0.00018211,2]
[354755338,1740667848255,-368.15,0.00018298,2]
[354755339,1740667848265,-300.0,0.00018316,2]
[354755340,1740667848275,-215.92,0.00018382,2]
[354755341,1740667848285,-170.42,0.00018731,2]
[354755342,1740667848294,-492.45,0.00018762,2]
[354755343,1740667848304,-1446.30277264,0.000188,10]
[354755344,1740667848314,-1000.0,0.00018993,2]
[354755345,1740667848323,-300.0,0.00018999,2]
[354755346,1740667848332,-666.0,0.00018999,2]
[354755347,1740667848342,-77311.21189028,0.00019,2]
[354755348,1740667848352,-2876.16365871,0.00019,2]
[354755349,1740667848363,-961.61,0.00019,2]
[354755350,1740667848375,-3718.19879113,0.00019,2]
[354755351,1740667848386,-10353.42345455,0.00019,2]
[354755352,1740667848397,-1000.0,0.0001902,2]
[354755353,1740667848407,-5084.17267152,0.0001911,2]
[354755354,1740667848420,-670.13,0.00019245,2]
[354755355,1740667848429,-1063.2461867,0.00019322,2]
[354755356,1740667848439,-2900.34678622,0.00019352,2]
[354755357,1740667848449,-11376.11618846,0.000195,2]
[354755358,1740667848459,-627.02,0.0001979,2]
[354755359,1740667848468,-190.59759044,0.000199,2]
[354755360,1740667848479,-169.59,0.00019962,2]
[354755361,1740667848489,-12701.7977984,0.00019999,2]
[354755362,1740667848499,-151.63696306,0.0002,2]
[354755363,1740667848509,-91229.86342993,0.0002,2]
[354755364,1740667848519,-13969.89661345,0.0002,15]
[354755365,1740667848528,-1013.0,0.0002,6]
[354755366,1740667848540,-799.3254699,0.0002,7]
[354755367,1740667848549,-159.0,0.0002,2]
[354755368,1740667848559,-1109.90660144,0.0002,4]
[354755369,1740667848568,-150.0,0.0002,2]
[354755370,1740667848578,-150.0,0.0002,2]
[354755371,1740667848588,-150.0,0.0002,2]
[354755372,1740667848598,-500.0,0.0002,2]
[354755373,1740667848608,-150.0,0.0002,2]
[354755374,1740667848618,-1194.0,0.0002,2]
[354755375,1740667848627,-500.0,0.0002,2]
[354755376,1740667848637,-150.0,0.00020027,2]
[354755377,1740667848647,-180.45160267,0.00020027,2]
[354755378,1740667848656,-500.0,0.00020027,2]
[354755379,1740667848671,-1194.0,0.00020027,2]
[354755380,1740667848682,-500.0,0.00020027,2]
[354755381,1740667848692,-189.00046065,0.00020055,2]
[354755382,1740667848702,-1194.0,0.00020055,2]
[354755383,1740667848712,-500.0,0.00020055,2]
[354755384,1740667848722,-1194.0,0.00020082,2]
[354755385,1740667848732,-500.0,0.00020082,2]
[354755386,1740667848742,-1194.0,0.0002011,2]
[354755387,1740667848753,-517.40986056,0.0002011,2]
[354755388,1740667848763,-1194.0,0.00020137,2]
[354755389,1740667848773,-1194.0,0.00020164,2]
[354755390,1740667848783,-1194.0,0.00020192,2]